lending/lending_fUSD_20241014
["ID","MTS","AMOUNT","RATE_DAILY","PERIOD"]
[340238957,1728894640454,-674.75,0.00011423,2]
[340238958,1728894640463,-674.75,0.00011426,2]
[340238959,1728894640570,-674.75,0.00011429,2]
[340238960,1728894640581,-674.75,0.00011432,2]
[340238961,1728894640591,-674.75,0.00011435,2]
[340238962,1728894640601,-674.75,0.00011438,2]
[340238963,1728894640611,-674.75,0.00011441,2]
[340238964,1728894640620,-674.75,0.00011444,2]
[340238965,1728894640630,-674.75,0.00011447,2]
[340238966,1728894640639,-674.75,0.0001145,2]
[340238967,1728894640649,-674.75,0.00011453,2]
[340238968,1728894640659,-674.75,0.00011456,2]
[340238969,1728894640668,-674.75,0.00011459,2]
[340238970,1728894640677,-159.87588835,0.0001146,2]
[340238971,1728894640687,-674.75,0.00011462,2]
[340238972,1728894640697,-2751.0,0.00011507,2]
[340238973,1728894640706,-1489.77,0.00011545,2]
[340238974,1728894640716,-184.58449801,0.000116,2]
[340238975,1728894640725,-456.64,0.00011721,2]
[340238976,1728894640735,-451.41,0.00011733,2]
[340238977,1728894640744,-600.0,0.00012,2]
[340238978,1728894640754,-255.0,0.00012044,2]
[340238979,1728894640763,-15374.50859959,0.00012192,2]
[340238980,1728894640772,-514.45,0.00012244,2]
[340238981,1728894640782,-180.0,0.00012245,2]
[340238982,1728894640791,-451.41,0.00012292,2]
[340238983,1728894640804,-456.64,0.00012307,2]
[340238984,1728894640814,-170.61520252,0.00012342,2]
[340238985,1728894640823,-167.0,0.00012445,2]
[340238986,1728894640833,-5544.38382759,0.00012457,2]
[340238987,1728894640843,-4795.07666133,0.00012457,2]
[340238988,1728894640852,-291.52749789,0.000125,2]
[340238989,1728894640861,-1000.0,0.00012545,2]
[340238990,1728894640870,-637.22,0.00012551,2]
[340238991,1728894640880,-166.49,0.00012637,2]
[340238992,1728894640890,-514.45,0.00012677,2]
[340238993,1728894640899,-571.12,0.00012759,2]
[340238994,1728894640909,-451.41,0.00012851,2]
[340238995,1728894640918,-167.0,0.00012855,2]
[340238996,1728894640928,-456.64,0.00012893,2]
[340238997,1728894640937,-179.99,0.00012893,2]
[340238998,1728894640952,-158.87,0.00012969,2]
[340238999,1728894640961,-4195.7071781,0.00013,2]
[340239000,1728894640971,-5800.0,0.00013,4]
[340239001,1728894640981,-810.73294933,0.00013,2]
[340239002,1728894640991,-5066.30630721,0.0001305,2]
[340239003,1728894641000,-514.45,0.0001311,2]
[340239004,1728894641010,-263.70256178,0.0001316,2]
[340239005,1728894641022,-433.0,0.00013188,2]
[340239006,1728894641033,-1908.0,0.0001326,2]
[340239007,1728894641043,-3356.0,0.0001326,2]
[340239008,1728894641053,-809.0,0.0001326,2]
[340239009,1728894641062,-1083.0,0.0001326,2]
[340239010,1728894641071,-1244.0,0.0001326,2]
[340239011,1728894641081,-5916.064,0.0001326,2]
[340239012,1728894641091,-551.397,0.0001326,2]
[340239013,1728894641100,-560.0,0.0001326,2]
[340239014,1728894641110,-812.0,0.0001326,2]
[340239015,1728894641120,-155.548,0.0001326,2]
[340239016,1728894641129,-1150.0,0.0001326,2]
[340239017,1728894641139,-167.0,0.00013266,2]
[340239018,1728894641148,-451.41,0.00013409,2]
[340239019,1728894641158,-3183.67,0.00013425,2]
[340239020,1728894641167,-571.12,0.00013429,2]
[340239021,1728894641176,-15374.50859959,0.00013468,2]
[340239022,1728894641186,-456.64,0.00013479,2]
[340239023,1728894641196,-1000.0,0.000135,2]
[340239024,1728894641206,-514.45,0.00013543,2]
[340239025,1728894641215,-953.6005,0.00013599,2]
[340239026,1728894641224,-167.0,0.00013677,2]
[340239027,1728894641234,-590.80217607,0.00013698,2]
[340239028,1728894641243,-800.0,0.00013699,2]
[340239029,1728894641253,-800.0,0.00013699,2]
[340239030,1728894641262,-800.0,0.00013699,2]
[340239031,1728894641271,-200.0,0.00013699,2]
[340239032,1728894641282,-800.0,0.00013699,2]
[340239033,1728894641291,-800.0,0.00013699,2]
[340239034,1728894641302,-800.0,0.00013699,2]
[340239035,1728894641311,-800.0,0.00013699,2]
[340239036,1728894641322,-500.0,0.00013699,2]
[340239037,1728894641331,-800.0,0.00013699,2]
[340239038,1728894641341,-800.0,0.00013699,2]
[340239039,1728894641351,-2347.02,0.00013699,2]
[340239040,1728894641360,-320.76,0.000137,2]
[340239041,1728894641370,-95120.31046283,0.000138,3]
[340239048,1728894643030,-8752.9640544,0.000138,3]
[340239049,1728894643085,-7139.5675753,0.000138,3]
[340239050,1728894643096,-372.48745849,0.000138,3]
[340239051,1728894643369,-394.97170988,0.000138,3]
[340239052,1728894643419,-341882.7197621,0.000138,3]
[340239053,1728894643428,-1489.77,0.00013809,2]
[340239054,1728894643437,-161.59275608,0.00013839,2]
[340239055,1728894643446,-564.8212458,0.00013873,2]
[340239056,1728894643457,-435.1387116,0.000139,2]
[340239057,1728894643466,-155965.95752442,0.000139,3]
[340239060,1728894646333,-0.20453962,0.0001326,2]
[340239062,1728894646348,-265.12497016,0.0001326,2]
[340239066,1728894646371,-2846.29386384,0.0001326,2]
[340239105,1728894646736,-489.41782416,0.0001326,2]
[340239147,1728894721563,933.28399895,0.00027,60]
[340239149,1728894844456,800.0,0.00026986,120]
[340239151,1728894968959,800.0,0.00026986,120]
[340239152,1728895129407,669.0,0.00027,60]
[340239154,1728895516603,200.0,0.00027,60]
[340239155,1728895525968,550.0,0.0001,2]
[340239156,1728895686407,-150.0,0.00010944,2]
[340239162,1728895784348,150.0,0.00010948,2]
[340239202,1728895832135,-164.81,0.00010959,2]
[340239203,1728895832145,-169.26,0.00010959,2]
[340239204,1728895832154,-150.0,0.00011,2]
[340239205,1728895832164,-600.0,0.00012,2]
[340239206,1728895832174,-881.49307591,0.00012186,2]
[340239207,1728895832191,-320.66312088,0.00012186,2]
[340239208,1728895832250,-210.67380321,0.00012186,2]
[340239209,1728895832260,-1130.39543464,0.00012995,2]
[340239210,1728895832269,-1776.32503833,0.00013388,2]
[340239211,1728895832279,-150.0,0.00013549,2]
[340239212,1728895832288,-812.0,0.0001355,2]
[340239213,1728895832298,-1054.032,0.0001355,2]
[340239214,1728895832307,-560.0,0.0001355,2]
[340239215,1728895832316,-449.0,0.0001355,2]
[340239216,1728895832432,-555.0,0.0001355,2]
[340239217,1728895832441,-935.0,0.0001355,2]
[340239218,1728895832450,-150.8,0.0001355,2]
[340239219,1728895832459,-916.10665903,0.0001355,2]
[340239220,1728895832474,-991.89334097,0.0001355,2]
[340239222,1728895832483,-2638.6493215,0.0001355,2]
[340239224,1728895832494,-397.7418011,0.0001355,2]
[340239226,1728895832505,-319.6088774,0.0001355,2]
[340239228,1728895832514,-709.46865407,0.0001355,2]
[340239229,1728895832525,-99.53134593,0.0001355,2]
[340239230,1728895832534,-150.0,0.0001355,2]
[340239232,1728895832543,-1503.46694303,0.0001355,2]
[340239236,1728895832565,-3416.88,0.0001355,2]
[340239238,1728895832576,-722.16573347,0.0001355,2]
[340239241,1728895832594,-240.4873235,0.0001355,2]
[340239243,1728895832603,-1150.0,0.0001355,2]
[340239245,1728895832612,-7580.69690929,0.0001355,2]
[340239338,1728895838417,-467.6403731,0.0001355,2]
[340239339,1728895838583,-5480.66271761,0.0001355,2]
[340239340,1728895838592,-150.132,0.0001355,2]
[340239341,1728895838602,-150.301,0.0001355,2]
[340239342,1728895838612,-423.26084594,0.00013616,2]
[340239343,1728895838621,-1964.77217844,0.00013622,2]
[340239344,1728895838630,-1000.0,0.00013881,2]
[340239345,1728895838640,-203.28088433,0.000139,2]
[340239346,1728895838649,-1042.0,0.000139,2]
[340239347,1728895838659,-500.0,0.000139,2]
[340239348,1728895838668,-500.0,0.000139,2]
[340239349,1728895838677,-529.55171215,0.000139,2]
[340239350,1728895838686,-250.0,0.00013915,2]
[340239351,1728895838695,-452.04,0.00013926,2]
[340239352,1728895838705,-532.44,0.00013929,2]
[340239353,1728895838714,-392.01,0.00013931,2]
[340239354,1728895838724,-487.37686956,0.00013933,2]
[340239375,1728895840188,-1083.0,0.0001355,2]
[340239376,1728895840197,-207.2435266,0.00013933,2]
[340239377,1728895840211,-975.016,0.00013933,2]
[340239385,1728895840326,-1081.36360384,0.00013933,2]
[340239386,1728895840336,-1379.39,0.00013945,2]
[340239387,1728895840345,-637.22,0.00013945,2]
[340239388,1728895840355,-614.973,0.00013966,2]
[340239389,1728895840365,-500.0,0.00013995,2]
[340239390,1728895840375,-250.0,0.00013997,2]
[340239391,1728895840384,-664.92,0.00013998,2]
[340239392,1728895840394,-268.2659296,0.00014,2]
[340239393,1728895840405,-650.0,0.00014,2]
[340239394,1728895840415,-200.0,0.00014032,2]
[340239395,1728895840424,-35.76746656,0.00014032,2]
[340239487,1728895843222,-164.23253344,0.00014032,2]
[340239488,1728895843232,-1447.61163814,0.00014033,2]
[340239491,1728895997474,512.461224,0.00026737,120]
[340239492,1728896209236,150.0,0.00010945,2]
[340239493,1728896301714,300.0,0.00010859,2]
[340239494,1728896330617,150.0,0.00010947,2]
[340239495,1728896465552,800.0,0.00026986,120]
[340239497,1728896540078,-5211.87780008,0.00015,14]
[340239501,1728896558904,-1432.29697909,0.00015,10]
[340239502,1728896558925,-409.12420093,0.00015,10]
[340239503,1728896689706,300.0,0.00027,60]
[340239505,1728896824159,800.0,0.00026986,120]
[340239507,1728896904589,150.0,0.00027,60]
[340239517,1728897032270,-157.14,0.00010959,2]
[340239518,1728897032280,-111.8600005,0.00010959,2]
[340239519,1728897032292,-46.0999995,0.00010959,2]
[340239520,1728897032301,-158.54,0.00010959,2]
[340239521,1728897032311,-150.0,0.00011,2]
[340239522,1728897032320,-1442.05092503,0.00011779,2]
[340239523,1728897032335,-78.85907497,0.00011779,2]
[340239524,1728897032346,-150.0,0.00013562,2]
[340239525,1728897032356,-560.0,0.00013563,2]
[340239526,1728897032366,-812.0,0.00013563,2]
[340239527,1728897032375,-555.0,0.00013563,2]
[340239528,1728897032385,-935.0,0.00013563,2]
[340239529,1728897032395,-150.0,0.00013563,2]
[340239530,1728897032405,-99.85859173,0.00013563,2]
[340239531,1728897032418,-635.00874538,0.00013563,2]
[340239532,1728897032430,-1653.46659865,0.00013563,2]
[340239533,1728897032442,-745.31368766,0.00013563,2]
[340239534,1728897032453,-222.35237658,0.00013563,2]
[340239535,1728897032463,-192.74484123,0.00013563,2]
[340239536,1728897032474,-308.807424,0.00013563,2]
[340239537,1728897032486,-1406.44773477,0.00013563,2]
[340239538,1728897032496,-809.0,0.00013563,2]
[340239539,1728897032506,-1150.0,0.00013563,2]
[340239540,1728897032515,-150.0,0.00013563,2]
[340239541,1728897032524,-5883.0,0.00013563,2]
[340239542,1728897032534,-5746.15226517,0.00013563,2]
[340239543,1728897032546,-496.3329089,0.00013563,2]
[340239544,1728897032558,-818.95666546,0.00013563,2]
[340239545,1728897032573,-6467.55816047,0.00013563,2]
[340239546,1728897032583,-635.45671589,0.00013607,2]
[340239547,1728897032602,-6379.71782852,0.00013607,2]
[340239548,1728897032613,-7830.55581474,0.00013607,2]
[340239551,1728897032717,-266.95294903,0.00013607,2]
[340239553,1728897032728,-3350.40350675,0.00013607,2]
[340239556,1728897032740,-4328.91690403,0.00013607,2]
[340239558,1728897032752,-818.15190406,0.00013607,2]
[340239582,1728897038435,-864.60851812,0.00013563,2]
[340239583,1728897038447,-218.39148188,0.00013563,2]
[340239584,1728897038457,-289.84437698,0.00013607,2]
[340239585,1728897038466,-782.38414114,0.00013619,2]
[340239586,1728897038490,-529.30864144,0.00013619,2]
[340239587,1728897038602,-1439.30721742,0.00013619,2]
[340239588,1728897038612,-250.0,0.00013623,2]
[340239589,1728897038622,-177.54,0.00013652,2]
[340239590,1728897038631,-602.79,0.00013699,2]
[340239591,1728897038640,-200.0,0.00013699,2]
[340239592,1728897038650,-343.37,0.00013711,2]
[340239593,1728897038661,-250.0,0.0001372,2]
[340239594,1728897038671,-1161.10475323,0.00013752,2]
[340239595,1728897038680,-686.74,0.00013754,2]
[340239596,1728897038689,-158.87,0.00013815,2]
[340239597,1728897038699,-200.0,0.00013865,2]
[340239598,1728897038708,-250.0,0.00013875,2]
[340239599,1728897038718,-423.26084594,0.00013921,2]
[340239600,1728897038727,-3566.59,0.00013976,2]
[340239601,1728897038736,-499.99,0.00013976,2]
[340239602,1728897038745,-250.0,0.00014,3]
[340239603,1728897038755,-258.94,0.00014,2]
[340239604,1728897038764,-1576.0,0.00014,2]
[340239605,1728897038773,-1520.91,0.00014043,2]
[340239606,1728897038783,-167.0,0.00014088,2]
[340239607,1728897038793,-228.08,0.00014159,2]
[340239608,1728897038803,-417.35,0.00014199,2]
[340239609,1728897038812,-7290.9078,0.00014249,2]
[340239610,1728897038821,-1000.0,0.00014252,2]
[340239611,1728897038830,-167.0,0.00014296,2]
[340239612,1728897038839,-289.08,0.00014314,2]
[340239613,1728897038848,-456.896,0.00014332,2]
[340239614,1728897038858,-41707.251,0.00014349,2]
[340239615,1728897038867,-619.84,0.00014387,2]
[340239616,1728897038881,-686.74,0.00014442,2]
[340239617,1728897038890,-167.0,0.00014499,2]
[340239618,1728897038899,-2430.0,0.000145,2]
[340239619,1728897038911,-188.0,0.00014674,2]
[340239620,1728897038922,-1758.8238,0.00014768,2]
[340239621,1728897038932,-11599.93313877,0.00014768,2]
[340239622,1728897038942,-755.81,0.00014822,2]
[340239623,1728897038954,-755.81,0.00014822,2]
[340239624,1728897038964,-755.81,0.00014822,2]
[340239625,1728897038974,-755.81,0.00014822,2]
[340239626,1728897038983,-755.81,0.00014822,2]
[340239627,1728897038992,-1511.55,0.00014822,2]
[340239628,1728897039001,-426.53,0.00014822,2]
[340239629,1728897039010,-424.12,0.00014822,2]
[340239630,1728897039020,-755.81,0.00014822,2]
[340239631,1728897039029,-424.12,0.00014822,2]
[340239632,1728897039038,-424.12,0.00014822,2]
[340239633,1728897039047,-1511.37,0.00014822,2]
[340239634,1728897039057,-755.81,0.00014822,2]
[340239635,1728897039067,-424.12,0.00014822,2]
[340239636,1728897039076,-424.12,0.00014822,2]
[340239637,1728897039086,-1018.62,0.00014822,2]
[340239638,1728897039096,-424.12,0.00014822,2]
[340239639,1728897039105,-755.81,0.00014822,2]
[340239640,1728897039114,-848.11,0.00014822,2]
[340239641,1728897039124,-755.81,0.00014822,2]
[340239642,1728897039133,-600.0,0.00014868,2]
[340239643,1728897039142,-600.0,0.00014868,2]
[340239644,1728897039152,-600.0,0.00014868,2]
[340239645,1728897039162,-600.0,0.00014868,2]
[340239646,1728897039171,-600.0,0.00014868,2]
[340239647,1728897039180,-600.0,0.00014868,2]
[340239648,1728897039189,-600.0,0.00014868,2]
[340239649,1728897039198,-600.0,0.00014868,2]
[340239650,1728897039207,-600.0,0.00014868,2]
[340239651,1728897039216,-604.32036278,0.00014868,2]
[340239652,1728897039226,-600.0,0.00014868,2]
[340239653,1728897039235,-600.0,0.00014868,2]
[340239654,1728897039244,-600.0,0.00014868,2]
[340239655,1728897039254,-600.0,0.00014868,2]
[340239656,1728897039264,-600.0,0.00014868,2]
[340239657,1728897039273,-600.0,0.00014868,2]
[340239658,1728897039283,-600.0,0.00014868,2]
[340239659,1728897039292,-600.0,0.00014868,2]
[340239660,1728897039302,-600.0,0.00014868,2]
[340239661,1728897039311,-600.0,0.00014868,2]
[340239662,1728897039321,-212.59608161,0.000149,2]
[340239663,1728897039330,-212.59608159,0.000149,2]
[340239664,1728897039339,-212.59608159,0.000149,2]
[340239665,1728897039349,-210.0,0.00015,2]
[340239666,1728897039358,-1938.83899404,0.00015,2]
[340239667,1728897039369,-201.05670577,0.00015,2]
[340239668,1728897039378,-5389.0,0.00015,2]
[340239669,1728897039388,-494.11554192,0.00015,2]
[340239670,1728897039469,-535.0,0.00015,2]
[340239671,1728897039478,-1062.0,0.00015,2]
[340239672,1728897039488,-159.90668473,0.00015,2]
[340239673,1728897039497,-153.33352474,0.00015,2]
[340239674,1728897039506,-500.0,0.00015,2]
[340239675,1728897039516,-617.68109809,0.00015,2]
[340239676,1728897039525,-500.0,0.00015,2]
[340239677,1728897039536,-175.43276957,0.00015,2]
[340239678,1728897039545,-5819.7021302,0.0001501,2]
[340239679,1728897039555,-977.0676644,0.0001502,2]
[340239680,1728897039564,-300.0,0.00015068,2]
[340239681,1728897039574,-167.0,0.00015083,2]
[340239682,1728897039583,-456.896,0.00015085,2]
[340239683,1728897039593,-150.0,0.00015096,2]
[340239684,1728897039602,-150.0,0.00015096,2]
[340239685,1728897039612,-300.0,0.00015096,2]
[340239686,1728897039621,-150.95,0.00015096,2]
[340239687,1728897039630,-150.67,0.00015096,2]
[340239688,1728897039639,-150.7,0.00015096,2]
[340239689,1728897039648,-436.41,0.00015096,2]
[340239690,1728897039659,-150.0,0.00015096,2]
[340239691,1728897039669,-150.0,0.00015096,2]
[340239692,1728897039679,-150.0,0.00015096,2]
[340239693,1728897039688,-150.0,0.00015096,2]
[340239694,1728897039697,-150.0,0.00015096,2]
[340239695,1728897039706,-150.0,0.00015096,2]
[340239696,1728897039716,-228.16,0.00015096,2]
[340239697,1728897039725,-150.0,0.00015096,2]
[340239698,1728897039735,-686.74,0.00015129,2]
[340239699,1728897039745,-1214.71533879,0.00015235,2]
[340239700,1728897039754,-1517.64,0.000153,2]
[340239701,1728897039763,-180.0,0.00015311,2]
[340239702,1728897039772,-306.21,0.00015375,2]
[340239703,1728897039781,-480.66756458,0.000154,2]
[340239704,1728897039791,-812.74810793,0.000155,2]
[340239705,1728897039800,-500.0,0.00015543,2]
[340239706,1728897039809,-401.25406388,0.00015543,2]
[340239707,1728897039819,-31389.4863,0.00015561,2]
[340239708,1728897039828,-15999.3993,0.00015581,2]
[340239709,1728897039838,-378.79829925,0.000156,2]
[340239710,1728897039847,-11599.93313877,0.00015616,2]
[340239711,1728897039857,-227.48689619,0.00015664,2]
[340239712,1728897039867,-2865.39846919,0.0001575,2]
[340239713,1728897039879,-424.12,0.00015781,2]
[340239714,1728897039889,-755.81,0.00015781,2]
[340239715,1728897039898,-755.81,0.00015781,2]
[340239716,1728897039912,-616.06,0.00015781,2]
[340239717,1728897039922,-755.81,0.00015781,2]
[340239718,1728897039931,-755.81,0.00015781,2]
[340239719,1728897039941,-755.81,0.00015781,2]
[340239720,1728897039951,-424.12,0.00015781,2]
[340239721,1728897039962,-755.81,0.00015781,2]
[340239722,1728897039972,-424.12,0.00015781,2]
[340239723,1728897039982,-424.12,0.00015781,2]
[340239724,1728897039992,-755.81,0.00015781,2]
[340239725,1728897040001,-424.12,0.00015781,2]
[340239726,1728897040010,-755.81,0.00015781,2]
[340239727,1728897040019,-424.12,0.00015781,2]
[340239728,1728897040028,-755.81,0.00015781,2]
[340239729,1728897040038,-755.81,0.00015781,2]
[340239730,1728897040048,-424.12,0.00015781,2]
[340239731,1728897040057,-424.12,0.00015781,2]
[340239732,1728897040067,-1495.3,0.00015781,2]
[340239733,1728897040077,-424.12,0.00015781,2]
[340239734,1728897040087,-424.12,0.00015781,2]
[340239735,1728897040097,-424.12,0.00015781,2]
[340239736,1728897040107,-424.12,0.00015781,2]
[340239737,1728897040117,-424.12,0.00015781,2]
[340239738,1728897040126,-424.12,0.00015781,2]
[340239739,1728897040135,-755.81,0.00015781,2]
[340239740,1728897040145,-755.81,0.00015781,2]
[340239741,1728897040157,-755.81,0.00015781,2]
[340239742,1728897040167,-755.81,0.00015781,2]
[340239743,1728897040177,-1027.38,0.00015781,2]
[340239745,1728897040186,-755.81,0.00015781,2]
[340239747,1728897040196,-755.81,0.00015781,2]
[340239748,1728897040205,-424.12,0.00015781,2]
[340239750,1728897040215,-686.74,0.00015817,2]
[340239752,1728897040224,-167.0,0.0001587,2]
[340239754,1728897040234,-161.33933335,0.0001591,2]
[340239755,1728897040243,-456.896,0.00015916,2]
[340239756,1728897040253,-535.04,0.00015918,2]
[340239757,1728897040263,-150.0,0.00015918,2]
[340239758,1728897040273,-535.04,0.00015918,2]
[340239759,1728897040282,-359.2,0.00015918,2]
[340239760,1728897040293,-300.0,0.00015918,2]
[340239761,1728897040304,-1068.28,0.00015918,2]
[340239762,1728897040314,-429.59,0.00015918,2]
[340239763,1728897040324,-359.2,0.00015918,2]
[340239764,1728897040334,-429.59,0.00015918,2]
[340239765,1728897040344,-359.2,0.00015918,2]
[340239766,1728897040354,-429.59,0.00015918,2]
[340239767,1728897040364,-359.2,0.00015918,2]
[340239768,1728897040374,-359.2,0.00015918,2]
[340239769,1728897040384,-859.03,0.00015918,2]
[340239770,1728897040393,-299.36,0.00015918,2]
[340239771,1728897040405,-429.59,0.00015918,2]
[340239772,1728897040415,-150.0,0.00015918,2]
[340239773,1728897040425,-359.2,0.00015918,2]
[340239774,1728897040435,-429.59,0.00015918,2]
[340239775,1728897040444,-150.0,0.00015918,2]
[340239776,1728897040454,-150.0,0.00015918,2]
[340239777,1728897040464,-429.59,0.00015918,2]
[340239778,1728897040474,-150.0,0.00015918,2]
[340239779,1728897040484,-359.2,0.00015918,2]
[340239780,1728897040504,-150.0,0.00015918,2]
[340239781,1728897040516,-150.0,0.00015918,2]
[340239782,1728897040526,-150.0,0.00015918,2]
[340239783,1728897040536,-150.0,0.00015918,2]
[340239784,1728897040547,-150.0,0.00015918,2]
[340239785,1728897040558,-150.0,0.00015918,2]
[340239786,1728897040568,-150.0,0.00015918,2]
[340239787,1728897040682,-430.93,0.00015918,2]
[340239788,1728897040693,-150.0,0.00015918,2]
[340239789,1728897040703,-359.2,0.00015918,2]
[340239790,1728897040712,-429.59,0.00015918,2]
[340239791,1728897040722,-859.03,0.00015918,2]
[340239792,1728897040731,-359.2,0.00015918,2]
[340239793,1728897040741,-359.2,0.00015918,2]
[340239794,1728897040751,-150.0,0.00015918,2]
[340239795,1728897040761,-429.59,0.00015918,2]
[340239796,1728897040771,-429.59,0.00015918,2]
[340239797,1728897040781,-150.0,0.00015918,2]
[340239798,1728897040791,-359.2,0.00015918,2]
[340239799,1728897040801,-150.0,0.00015918,2]
[340239800,1728897040811,-429.59,0.00015918,2]
[340239801,1728897040820,-359.2,0.00015918,2]
[340239802,1728897040830,-429.59,0.00015918,2]
[340239803,1728897040840,-359.2,0.00015918,2]
[340239804,1728897040850,-150.0,0.00015918,2]
[340239805,1728897040859,-359.2,0.00015918,2]
[340239806,1728897040869,-150.0,0.00015918,2]
[340239807,1728897040883,-150.0,0.00015918,2]
[340239808,1728897040893,-150.0,0.00015918,2]
[340239809,1728897040902,-306.21,0.00015919,2]
[340239810,1728897040914,-177.54,0.00015927,2]
[340239811,1728897040924,-228.08,0.00015929,2]
[340239812,1728897040934,-700.0,0.00016,2]
[340239813,1728897040945,-2000.0,0.00016,2]
[340239814,1728897040955,-2000.0,0.0001601,2]
[340239815,1728897040965,-3529.140463,0.0001602,2]
[340239816,1728897040975,-1000.0,0.00016033,2]
[340239817,1728897040984,-289.08,0.00016103,2]
[340239818,1728897040994,-1520.91,0.00016307,2]
[340239819,1728897041004,-200.0,0.0001634,2]
[340239820,1728897041013,-1062.0,0.0001637,2]
[340239821,1728897041023,-500.0,0.0001637,2]
[340239822,1728897041033,-755.42752525,0.0001637,2]
[340239823,1728897041043,-710.63,0.00016438,2]
[340239824,1728897041052,-543.96,0.00016438,2]
[340239825,1728897041061,-150.0,0.00016438,2]
[340239826,1728897041071,-300.0,0.00016438,2]
[340239827,1728897041080,-150.0,0.00016438,2]
[340239828,1728897041089,-306.21,0.00016463,2]
[340239829,1728897041099,-11599.93313877,0.00016464,2]
[340239830,1728897041109,-686.74,0.00016505,2]
[340239831,1728897041118,-592.258,0.00016563,2]
[340239832,1728897041127,-555.0,0.00016563,2]
[340239833,1728897041137,-935.0,0.00016563,2]
[340239834,1728897041146,-3356.0,0.00016563,2]
[340239835,1728897041156,-1908.0,0.00016563,2]
[340239836,1728897041165,-805.0,0.00016563,2]
[340239837,1728897041174,-1150.0,0.00016563,2]
[340239838,1728897041183,-150.0,0.00016563,2]
[340239839,1728897041192,-5883.0,0.00016563,2]
[340239840,1728897041201,-13529.0,0.00016563,2]
[340239841,1728897041211,-167.0,0.00016656,2]
[340239842,1728897041220,-217.85,0.00016712,2]
[340239843,1728897041229,-23730.7518768,0.00016729,3]
[340239844,1728897041239,-424.12,0.0001674,2]
[340239845,1728897041249,-424.12,0.0001674,2]
[340239846,1728897041258,-848.11,0.0001674,2]
[340239847,1728897041267,-424.12,0.0001674,2]
[340239848,1728897041277,-424.12,0.0001674,2]
[340239849,1728897041286,-424.12,0.0001674,2]
[340239850,1728897041296,-150.0,0.0001674,2]
[340239851,1728897041305,-741.29,0.0001674,2]
[340239852,1728897041315,-717.41,0.0001674,2]
[340239853,1728897041324,-150.0,0.0001674,2]
[340239854,1728897041334,-359.2,0.0001674,2]
[340239855,1728897041343,-429.59,0.0001674,2]
[340239856,1728897041352,-429.59,0.0001674,2]
[340239857,1728897041362,-150.0,0.0001674,2]
[340239858,1728897041371,-359.2,0.0001674,2]
[340239859,1728897041380,-359.2,0.0001674,2]
[340239860,1728897041390,-150.0,0.0001674,2]
[340239861,1728897041400,-429.59,0.0001674,2]
[340239862,1728897041412,-429.59,0.0001674,2]
[340239863,1728897041420,-150.0,0.0001674,2]
[340239864,1728897041430,-150.0,0.0001674,2]
[340239865,1728897041440,-359.2,0.0001674,2]
[340239866,1728897041449,-150.0,0.0001674,2]
[340239867,1728897041458,-279.04,0.0001674,2]
[340239868,1728897041468,-325.32,0.0001674,2]